Cogmind - Beta 16.1 @@@ ROGUE MODE // 2026.04.10 @ 03:29:30 Player: Maelyn Result: Destroyed by H-66 Slayer with Gauss Rifle Performance ------------- Evolutions (4) 2000 Regions Visited (7) 1400 Robots Destroyed (51) 255 Value Destroyed (798) 798 Prototype IDs (28) 560 Alien Tech Used (0) 0 Bonus (300) 300 TOTAL SCORE: 5313 Bonus ------- Aligned with FarCom 300 Cogmind --------- Core Integrity 0/850 Matter 277/300 Energy 99/100 System Corruption 4% Temperature Cool (0) Movement Core (50) Location -6/Factory Parts ------- > --- POWER (1) -------- (None) > --- PROPULSION (5) --- (None) > --- UTILITY (7) ------ Modified TNC > --- WEAPON (2) ------- Chainsword > --- INVENTORY (5) ---- Advanced Melee Analysis Suite Peak State ------------ > --- POWER ------------ Cold Fusion Reactor > --- PROPULSION ------- Xenon Bombardment Thruster Xenon Bombardment Thruster Nuclear Pulse Thruster Nuclear Pulse Thruster Nuclear Pulse Thruster > --- UTILITY ---------- High-capacity Battery Gravity Neutralizer Modified TNC Improved Melee Analysis Suite Advanced ECM Suite Reflective Plating Hacking Suite > --- WEAPON ----------- Greatsword > --- INVENTORY -------- Micro Nuclear Core Xenon Bombardment Thruster Xenon Bombardment Thruster Advanced Melee Analysis Suite Chainsword [Rating: 66] Favorites ----------- Power Ion Engine Engine Ion Engine Power Core Light Nuclear Core Reactor Cold Fusion Reactor Propulsion Xenon Bombardment Thruster Treads Light Treads Leg Aluminum Leg Flight Unit Xenon Bombardment Thruster Utility Medium Storage Unit Device Advanced ECM Suite Storage Medium Storage Unit Processor Modified TNC Hackware Hacking Suite Protection Light Armor Plating Weapon Autogun Energy Gun Heavy EM Shotgun Ballistic Gun Autogun Slashing Weapon Greatsword Build | -11 -10 -10 -10 -9 -8 -7 -6 ------- Run | Yrd Mat Min Exi Min Mat Fac Fac Slots Evolved 8 | . . . . . 4 2 2 Power . | . . . . . . . . Propulsion 3 | . . . . . 2 1 . Utility 5 | . . . . . 2 1 2 Weapon . | . . . . . . . . Parts Attached 55 | 6 8 2 2 . 18 7 12 Power 9 | 1 3 . . . 2 1 2 Engine 5 | 1 3 . . . 1 . . Core 3 | . . . . . 1 1 1 Reactor 1 | . . . . . . . 1 Propulsion 15 | 2 . 2 2 . 4 2 3 Treads 2 | 2 . . . . . . . Leg 4 | . . 2 2 . . . . Wheel . | . . . . . . . . Hover . | . . . . . . . . Flight 9 | . . . . . 4 2 3 Utility 17 | 1 3 . . . 4 3 6 Device 6 | . 1 . . . 1 1 3 Storage 5 | 1 1 . . . 1 . 2 Processor 3 | . . . . . 1 2 . Hackware 1 | . . . . . . . 1 Protection 2 | . 1 . . . 1 . . Artifact . | . . . . . . . . Weapon 14 | 2 2 . . . 8 1 1 Energy Gun 1 | . . . . . 1 . . Energy Cannon . | . . . . . . . . Ballistic Gun 11 | 2 2 . . . 7 . . Ballistic Cannon . | . . . . . . . . Launcher . | . . . . . . . . Special Weapon . | . . . . . . . . Impact Weapon . | . . . . . . . . Slashing Weapon 2 | . . . . . . 1 1 Piercing Weapon . | . . . . . . . . Special Melee Weapon . | . . . . . . . . Unidentified Prototypes 5 | . 1 . . . 1 1 2 Parts Lost 20 | . . 2 . . 1 . 17 Power 2 | . . . . . . . 2 Propulsion 9 | . . 2 . . . . 7 Utility 8 | . . . . . 1 . 7 Weapon 1 | . . . . . . . 1 Highest Loss Streak 11 | . . 2 . . 1 . 11 To Critical Strikes . | . . . . . . . . Average Backups 7 | 4 7 7 8 10 8 4 4 Power 1 | . 1 2 2 2 1 . . Propulsion 1 | 1 2 . . . . 1 1 Utility 1 | . . . 1 4 3 2 1 Weapon 2 | 1 3 5 5 4 2 . . Tool/Special . | . . . . . . . . Unused Backups 19 | . 4 . 1 . 9 2 3 Power 5 | . 2 . . . 3 . . Propulsion 1 | . . . . . . 1 . Utility 4 | . . . . . 1 1 2 Weapon 9 | . 2 . 1 . 5 . 1 Tool/Special . | . . . . . . . . Average Slot Usage (%) 88 | . 93 98 90 71 80 85 79 Engine 8 | . 12 14 14 14 2 . . Core 1 | . . . . . 6 7 1 Treads 9 | . 27 4 . . . . . Leg 8 | . . 22 28 28 12 . . Flight 10 | . . . . . 12 34 28 Device 4 | . 5 . . . 2 . 10 Storage 11 | . 14 14 14 14 9 7 6 Processor 5 | . . . . . 9 17 13 Protection 7 | . 4 14 14 14 8 7 5 Ballistic Gun 17 | . 27 28 19 . 17 1 . Slashing Weapon 1 | . . . . . . 6 5 Peak Build Rating 66 | 6 12 12 28 28 50 51 66 Average Rating 25 | 4 8 11 13 28 41 46 52 On Entrance 22 | . 6 12 12 28 28 44 49 Avg Prop Armor Cover (%) . | . . . . . . . . Naked Turns . | . . . . . . . . Heaviest Build 39 | 13 27 27 27 21 30 22 39 Greatest Support 60 | 40 40 40 60 60 60 30 42 Greatest Overweight (x) 8 | 1 5 8 1 . 4 . 6 Average Overweight (x) . | . . 1 . . . . . Largest Inventory Capacity 10 | 8 10 10 10 10 10 5 10 Average Capacity 8 | 7 9 10 10 10 9 5 5 Most Carried 10 | 8 10 9 10 10 10 5 5 Average Carried 7 | 4 7 7 8 10 8 4 4 Final Capacity 10 | 8 10 10 10 10 5 5 5 Final Carried 10 | 5 9 7 10 10 5 4 1 Class Distribution -------------------- 73% | Mutant 20% | Sprinter 4% | Ninja Dominant Class ---------------- Mutant | -10/Materials Mutant | -10/Mines Mutant | -10/Exiles Mutant | -9/Mines Mutant | -8/Materials Sprinter | -7/Factory Sprinter | -6/Factory Resources | -11 -10 -10 -10 -9 -8 -7 -6 ----------- Run | Yrd Mat Min Exi Min Mat Fac Fac Matter Collected 1630 | 272 380 28 100 . 454 204 192 Remotely . | . . . . . . . . Salvage Created 1828 | 77 643 . . . 580 76 452 Parts 120 | 6 43 . . . 44 4 23 Haulers Intercepted 5 | . 2 . . . 2 1 . Recyclers Shooed 2 | . . . . . 2 . . Parts Field Recycled . | . . . . . . . . Retrieved Matter . | . . . . . . . . Parts Self-Destructed . | . . . . . . . . Prevented . | . . . . . . . . Parts Restored . | . . . . . . . . Kills | -11 -10 -10 -10 -9 -8 -7 -6 ------- Run | Yrd Mat Min Exi Min Mat Fac Fac Combat Hostiles Destroyed 19 | . 13 . . . 6 . . Guns 19 | . 13 . . . 6 . . Classes Destroyed 10 | 1 6 . . . 3 . . Worker 8 | . 1 . . . 3 1 3 Builder 2 | . . . . . 1 . 1 Tunneler 3 | 3 . . . . . . . Hauler 5 | . 2 . . . 2 1 . Recycler 5 | . . . . . 2 . 3 Operator 3 | . 1 . . . . 1 1 Watcher 6 | . 3 . . . 3 . . Swarmer 7 | . 3 . . . 4 . . Grunt 11 | . 10 . . . 1 . . Sentry 1 | . . . . . 1 . . Best Kill Streak 5 | 3 4 . . . 5 1 3 Combat Bots Only 5 | . 3 . . . 5 . . Max Kills in Single Turn 2 | 1 1 . . . 2 1 1 Gunslinging 1 | . . . . . 1 . . Exploded . | . . . . . . . . Melee . | . . . . . . . . Uniques/NPCs Destroyed . | . . . . . . . . Combat | -11 -10 -10 -10 -9 -8 -7 -6 -------- Run | Yrd Mat Min Exi Min Mat Fac Fac Hostile Shots Fired 394 | . 74 9 . . 33 18 260 Missed 173 | . 20 2 . . 11 12 128 Hits 221 | . 54 7 . . 22 6 132 Melee 7 | . . 5 . . . . 2 Projectile 214 | . 54 2 . . 22 6 130 Critical Strikes 6 | . . . . . . . 6 Damage Taken 2867 | . 608 172 . . 226 44 1817 Core 1028 | . 136 . . . 38 . 854 Absorbed by Shields . | . . . . . . . . Ignored by Resistances 32 | . . . . . . 6 26 Core Remaining (%) 84 | 100 . . . 45 93 100 . Volleys Fired 132 | 3 78 . . . 51 . . Largest 2 | 2 2 . . . 2 . . Hottest 56 | 40 46 . . . 56 . . Shots Fired 263 | 6 156 . 1 . 100 . . Gun 263 | 6 156 . 1 . 100 . . Cannon . | . . . . . . . . Launcher . | . . . . . . . . Special . | . . . . . . . . Kinetic 263 | 6 156 . 1 . 100 . . Thermal . | . . . . . . . . Explosive . | . . . . . . . . Electromagnetic . | . . . . . . . . Robot Hit Streak 12 | 3 12 . . . 5 . . Robot Miss Streak 8 | . 5 . . . 8 . . Penetration Max . | . . . . . . . . Secondary Targets 3 | . 2 . . . 1 . . Max Gunslinging Chain 1 | . 1 . . . 1 . . Shots Hit Robots 155 | 3 91 . . . 47 3 11 Core Hits 71 | 3 38 . . . 23 2 5 Critical Kills . | . . . . . . . . Critical Parts Destroyed 2 | . 2 . . . . . . Critical Strikes 2 | . 2 . . . . . . Destroy 2 | . 2 . . . . . . Melee Attacks 17 | . . . . . . 4 13 Impact . | . . . . . . . . Slashing 17 | . . . . . . 4 13 Piercing . | . . . . . . . . Sneak Attacks 10 | . . . . . . 2 8 Combat Hostiles . | . . . . . . . . Follow-up Attacks . | . . . . . . . . Damage Inflicted 3247 | 41 950 . . . 856 306 1094 Guns 1846 | 41 949 . . . 856 . . Cannons . | . . . . . . . . Explosions . | . . . . . . . . Melee 1400 | . . . . . . 306 1094 Ramming 1 | . 1 . . . . . . Kinetic 1846 | 41 949 . . . 856 . . Thermal . | . . . . . . . . Explosive . | . . . . . . . . Electromagnetic . | . . . . . . . . Impact . | . . . . . . . . Slashing 1400 | . . . . . . 306 1094 Piercing . | . . . . . . . . Highest Corruption 4 | . . 3 3 3 . . 4 Average Corruption 2 | . . 3 3 3 . . 2 Corruption Purged . | . . . . . . . . Corruption Blocked . | . . . . . . . . Effects 16 | . . 5 9 . . . 2 Message Errors 3 | . . 2 1 . . . . Matter Fused 7 | . . 1 5 . . . 1 Heat Flow Errors 1 | . . 1 . . . . . Energy Discharges 1 | . . 1 . . . . . Data Loss (minor) 1 | . . . . . . . 1 Data Loss (major) 2 | . . . 2 . . . . Misfires 1 | . . . 1 . . . . Overload Shots . | . . . . . . . . Overflow Damage 414 | . . . . . . 69 345 Projectiles . | . . . . . . . . Explosions . | . . . . . . . . Melee 414 | . . . . . . 69 345 Knockbacks . | . . . . . . . . Impact . | . . . . . . . . Kinetic . | . . . . . . . . Secondary . | . . . . . . . . Self-Inflicted Damage . | . . . . . . . . Shots . | . . . . . . . . Rammed 1 | . 1 . . . . . . Targets Rammed 2 | . 2 . . . . . . Kicked . | . . . . . . . . Crushed 1 | . 1 . . . . . . Highest Temperature 452 | . 30 281 7 . 452 358 15 Average Temperature 109 | . 9 147 7 . 137 124 5 Received Heat Transfer 774 | . 288 . . . 36 18 432 Effects 9 | . . 2 . . 5 2 . Shutdowns 1 | . . . . . 1 . . Energy Bleed 1 | . . . . . 1 . . Interference 5 | . . 2 . . 2 1 . Short Circuit 2 | . . . . . 1 1 . Siege Activations . | . . . . . . . . Martial Activations . | . . . . . . . . Shielding Activations . | . . . . . . . . Robots Disrupted . | . . . . . . . . Combat Hostiles . | . . . . . . . . Robots Corrupted . | . . . . . . . . Combat Hostiles . | . . . . . . . . Parts Fried . | . . . . . . . . Impact Corruptions . | . . . . . . . . Robots Melted . | . . . . . . . . Combat Hostiles . | . . . . . . . . Parts Melted . | . . . . . . . . Heat Transferred . | . . . . . . . . Parts Sabotaged . | . . . . . . . . Parts Stolen . | . . . . . . . . Parts Stripped . | . . . . . . . . Power Chain Reactions . | . . . . . . . . Alert | -11 -10 -10 -10 -9 -8 -7 -6 ------- Run | Yrd Mat Min Exi Min Mat Fac Fac Maximum Alert Level 1 | . . . . . . . 1 Low Security (%) 98 | 100 100 100 . 100 100 100 92 Level 1 1 | . . . . . . . 7 Level 2 . | . . . . . . . . Level 3 . | . . . . . . . . Level 4 . | . . . . . . . . Level 5 . | . . . . . . . . High Security . | . . . . . . . . Max Security . | . . . . . . . . Peak Influence 291 | 10 151 . . . 145 30 291 Initial . | . . . . . . . . Average 49 | 1 69 . . . 45 4 69 Influence Increases 1364 | 15 426 . . . 251 107 565 Destroy 0b10 Robot/C 380 | . 260 . . . 120 . . Destroy 0b10 Robot/NC 160 | 15 35 . . . 55 15 40 Destroy Leader 102 | . 70 . . . 30 2 . Destroy Structure 2 | . 1 . . . 1 . . Partial Spotted 90 | . 15 . . . . 45 30 Lose Combat Pursuer 630 | . 45 . . . 45 45 495 Influence Decreases 1113 | 15 426 . . . 251 105 316 Entered New Map 2 | . . . . . . . 2 Time Decay 931 | 15 426 . . . 241 105 144 Lost Part 180 | . . . . . 10 . 170 Squads Dispatched 13 | . 3 . . . . 1 9 Investigation 5 | . 1 . . . . . 4 Extermination 3 | . . . . . . . 3 Reinforcement 5 | . 2 . . . . 1 2 Assault . | . . . . . . . . Garrison . | . . . . . . . . Intercept . | . . . . . . . . Searches Triggered . | . . . . . . . . Construction Impeded . | . . . . . . . . Haulers Reinforced . | . . . . . . . . Active Scanning Responses . | . . . . . . . . Cargo Convoy Interrupts . | . . . . . . . . Stealth | -11 -10 -10 -10 -9 -8 -7 -6 --------- Run | Yrd Mat Min Exi Min Mat Fac Fac Distress Signals 6 | . 1 . . . 2 . 3 Communications Jammed . | . . . . . . . . Distress Signals . | . . . . . . . . Times Spotted 97 | . 25 5 . . 13 7 47 Peak Tracking Total 18 | . 4 2 . . 6 4 18 Tactical Retreats 19 | . 3 . . . 1 2 13 ECM-based Alert Blocks 2 | . . . . . . . 2 Traps | -11 -10 -10 -10 -9 -8 -7 -6 ------- Run | Yrd Mat Min Exi Min Mat Fac Fac Traps Triggered 11 | . 7 . . . . . 4 Indirectly . | . . . . . . . . Trap Hack Attempts . | . . . . . . . . Triggered . | . . . . . . . . Disarmed . | . . . . . . . . Reprogrammed . | . . . . . . . . Reused . | . . . . . . . . Traps Extracted . | . . . . . . . . Installed . | . . . . . . . . Triggered . | . . . . . . . . Machines | -11 -10 -10 -10 -9 -8 -7 -6 ---------- Run | Yrd Mat Min Exi Min Mat Fac Fac Machines Disabled . | . . . . . . . . Max in Single Turn . | . . . . . . . . Machines Repaired . | . . . . . . . . Machines Dismantled . | . . . . . . . . Machines Sabotaged . | . . . . . . . . Overloaded Fab Kills . | . . . . . . . . Hacking | -11 -10 -10 -10 -9 -8 -7 -6 --------- Run | Yrd Mat Min Exi Min Mat Fac Fac Machines Accessed 3 | . . . 1 . . . 2 Terminals 1 | . . . . . . . 1 Fabricators . | . . . . . . . . Repair Stations . | . . . . . . . . Recycling Units . | . . . . . . . . Scanalyzers . | . . . . . . . . Garrison Access 1 | . . . . . . . 1 Total Hacks 7 | . . . 1 . . . 6 Successful 1 | . . . 1 . . . . Failed 6 | . . . . . . . 6 Catastrophic 2 | . . . . . . . 2 Database Lockouts . | . . . . . . . . Manual 2 | . . . 1 . . . 1 Terminals 2 | . . . . . . . 2 Fabricators . | . . . . . . . . Repair Stations . | . . . . . . . . Recycling Units . | . . . . . . . . Scanalyzers . | . . . . . . . . Garrison Access 4 | . . . . . . . 4 Terminal Hacks 1 | . . . 1 . . . . Proto ID Catalog 1 | . . . 1 . . . . Fabricator Hacks . | . . . . . . . . Repair Station Hacks . | . . . . . . . . Recycling Unit Hacks . | . . . . . . . . Scanalyzer . | . . . . . . . . Garrison Access Hacks . | . . . . . . . . Unauthorized Hacks . | . . . . . . . . Terminals . | . . . . . . . . Fabricators . | . . . . . . . . Repair Stations . | . . . . . . . . Recycling Units . | . . . . . . . . Scanalyzers . | . . . . . . . . Garrison Access . | . . . . . . . . Data Cores Recovered . | . . . . . . . . Used . | . . . . . . . . Hacking Detections 2 | . . . . . . . 2 Full Trace Events 2 | . . . . . . . 2 Feedback Events . | . . . . . . . . Feedback Blocked . | . . . . . . . . Robot Schematics Acquired . | . . . . . . . . Robots Built . | . . . . . . . . Authchips . | . . . . . . . . Time . | . . . . . . . . Total Robot Build Rating . | . . . . . . . . Part Schematics Acquired . | . . . . . . . . Parts Built . | . . . . . . . . Authchips . | . . . . . . . . Time . | . . . . . . . . Total Part Build Rating . | . . . . . . . . Part Studies Acquired . | . . . . . . . . Parts Repaired . | . . . . . . . . Time . | . . . . . . . . Parts Recycled . | . . . . . . . . Recycled Matter . | . . . . . . . . Retrieved Matter . | . . . . . . . . Retrieved Components . | . . . . . . . . Parts Scanalyzed . | . . . . . . . . Part Schematics Acquired . | . . . . . . . . Parts Damaged . | . . . . . . . . Bothacking | -11 -10 -10 -10 -9 -8 -7 -6 ------------ Run | Yrd Mat Min Exi Min Mat Fac Fac Used RIF Installer . | . . . . . . . . Robots Hacked . | . . . . . . . . Non-combat . | . . . . . . . . Combat . | . . . . . . . . Robot Hacks Applied . | . . . . . . . . Relay Couplers Released . | . . . . . . . . Fabnet Peak Effective % . | . . . . . . . . Robots Rewired . | . . . . . . . . Allies Hacked . | . . . . . . . . Hacks Repelled . | . . . . . . . . Allies | -11 -10 -10 -10 -9 -8 -7 -6 -------- Run | Yrd Mat Min Exi Min Mat Fac Fac Total Allies . | . . . . . . . . Largest Group . | . . . . . . . . Highest-Rated Group . | . . . . . . . . Highest-Rated Ally . | . . . . . . . . Total Orders . | . . . . . . . . Ally Attacks . | . . . . . . . . Total Damage . | . . . . . . . . Kills . | . . . . . . . . Allies Corrupted . | . . . . . . . . Allies Melted . | . . . . . . . . Intel | -11 -10 -10 -10 -9 -8 -7 -6 ------- Run | Yrd Mat Min Exi Min Mat Fac Fac Active Infowar (turns) 1675 | . 438 . . . 579 367 291 Sensors 43 | . . . . . . . 43 Seismic 438 | . 438 . . . . . . T.N.C. 1228 | . . . . . 579 367 282 ECM 23 | . . . . . . . 23 Robot Analysis Total . | . . . . . . . . Derelict Logs Recovered . | . . . . . . . . Drone Launches . | . . . . . . . . Drone Recoveries . | . . . . . . . . Exploration | -11 -10 -10 -10 -9 -8 -7 -6 ------------- Run | Yrd Mat Min Exi Min Mat Fac Fac Turns Passed 4124 | 130 1331 229 734 15 628 406 651 Spaces Moved 4507 | 83 667 118 440 17 516 1158 1508 Core 96 | 29 3 3 . . . . 61 Treads 736 | 54 664 18 . . . . . Legs 853 | . . 97 440 17 299 . . Wheels . | . . . . . . . . Hover . | . . . . . . . . Flight 2822 | . . . . . 217 1158 1447 Fastest Speed 28 | 50 160 160 90 90 31 28 28 Average Speed 75 | 127 160 192 164 90 78 29 34 Slowest Speed 450 | 160 300 450 190 90 380 31 350 Overloaded Moves . | . . . . . . . . Propulsion Burnouts . | . . . . . . . . Robots Hopped . | . . . . . . . . Potential Cave-ins . | . . . . . . . . Cave-ins Triggered . | . . . . . . . . Exploration Rate (%) 37 | 4 94 30 72 8 37 27 27 Regions Visited 7 Branch Regions 3 Pre-discovered Areas . | . . . . . . . . Known Exits Taken 1 | . . . . . . 1 . Unknown Exits Taken 6 | 1 1 1 1 1 1 . . Scrap Searched . | . . . . . . . . Spaces Dug . | . . . . . . . . Terrain Destroyed 1 | . . . . . 1 . . Melee . | . . . . . . . . Projectile 1 | . . . . . 1 . . AOE . | . . . . . . . . Terrain Rammed . | . . . . . . . . Walls Destroyed . | . . . . . . . . Machines Disabled . | . . . . . . . . Actions | -11 -10 -10 -10 -9 -8 -7 -6 --------- Run | Yrd Mat Min Exi Min Mat Fac Fac Total 4958 | 102 785 121 451 16 652 1221 1610 Wait 103 | . . . . . 37 24 42 Move 4500 | 82 666 117 439 16 515 1157 1508 Hop . | . . . . . . . . Pick Up 64 | 11 12 1 4 . 16 10 10 Fast Attach 20 | . 8 . . . 5 5 2 Attach 21 | 6 2 2 . . 5 . 6 Detach 3 | . . . 1 . . 1 1 Swap 31 | . 7 . 2 . 9 4 9 Drop 54 | . 10 1 5 . 14 16 8 Fire 132 | 3 78 . . . 51 . . Melee 17 | . . . . . . 4 13 Ram . | . . . . . . . . Kick . | . . . . . . . . Crush 2 | . 2 . . . . . . Escape Stasis 11 | . . . . . . . 11 Rewire . | . . . . . . . . Trap . | . . . . . . . . Miscellaneous . | . . . . . . . . Route ------- -11/Scrapyard -10/Materials (discovered 6 exits: [*Mat x3] / [*Min x2] / [*Sub]) -10/Mines -10/Exiles (discovered 2 exits: [*Min x2]) -9/Mines -8/Materials (discovered 3 exits: [*Fac x2] / [*Sto]) -7/Factory -6/Factory (discovered 1 exit: [*Fac]) History --------- Turn | Location | Event 11 | -11/Scrapyard | Discovered new exit (range 15) 131 | -11/Scrapyard | Entered Materials 303 | -10/Materials | Build established: Mutant 444 | -10/Materials | Discovered new exit (range 15) 605 | -10/Materials | Discovered new exit (range 12) 742 | -10/Materials | Core integrity fell below 50% 988 | -10/Materials | Discovered new exit (range 8) 1193 | -10/Materials | Discovered new exit (range 8) 1312 | -10/Materials | Discovered new exit (range 7) 1387 | -10/Materials | Discovered new exit (range 13) 1462 | -10/Materials | Entered Mines 1473 | -10/Mines | Assembled infested the area 1553 | -10/Mines | Met 8R-AWN 1682 | -10/Mines | Discovered new exit (range 5) 1691 | -10/Mines | Entered Exiles 1739 | -10/Exiles | Welcomed by 8R-AWN 1769 | -10/Exiles | Met EX-HEX 1873 | -10/Exiles | Met EX-DEC 2024 | -10/Exiles | Discovered new exit (range 14) 2200 | -10/Exiles | Met EX-BIN 2245 | -10/Exiles | Aligned with FarCom system 2247 | -10/Exiles | Given EX-Vault access code 2301 | -10/Exiles | Opened EX-Vault 2320 | -10/Exiles | Found Potential Leg 2322 | -10/Exiles | Found Potential Leg 2329 | -10/Exiles | Found Modified TNC 2335 | -10/Exiles | Found PSU Rigger 2354 | -10/Exiles | Warned to stay clear of 0b10 Research branches 2391 | -10/Exiles | Learned about 8R-AWN's background 2413 | -10/Exiles | Discovered new exit (range 14) 2425 | -10/Exiles | Stole three prototypes: Potential Leg, Modified TNC, PSU Rigger 2425 | -10/Exiles | Entered Mines 2428 | -9/Mines | Met a Derelict bent on vengeance 2435 | -9/Mines | Discovered new exit (range 6) 2440 | -9/Mines | Entered Materials 2440 | -8/Materials | Evolved 4 slots: Propulsion x2, Utility x2 2560 | -8/Materials | Discovered new exit (range 14) 2714 | -8/Materials | Discovered new exit (range 11) 2814 | -8/Materials | Discovered new exit (range 11) 3068 | -8/Materials | Entered Factory 3068 | -7/Factory | Evolved 2 slots: Propulsion x1, Utility x1 3070 | -7/Factory | FarCom data flow suspended 3240 | -7/Factory | Build established: Sprinter 3460 | -7/Factory | Discovered new exit (range 5) 3461 | -7/Factory | Identified exit to Factory 3474 | -7/Factory | Entered another Factory area 3474 | -6/Factory | Evolved 2 slots: Utility x2 3785 | -6/Factory | Discovered new exit (range 14) 4039 | -6/Factory | Core integrity fell below 50% 4068 | -6/Factory | Lost 11 parts (1p5n4u1w) 4119 | -6/Factory | Core integrity fell below 20% 4125 | -6/Factory | Destroyed by H-66 Slayer with Gauss Rifle Last Messages --------------- 04037_ Adv. ECM Suite destroyed. 04040_ Critical hit (Burn: +37). 04041_ W-25 Informer sends out distress signal. 04050_ System corrupted: Component data lost. 04097_ Construction Platform disabled. 04108_ Gravity Neutralizer destroyed. 04118_ Triggered Ambush Trap. 04118_ L-41 Fighter emerges from a hatch in the floor. 04118_ S-27 Virus emerges from a hatch in the floor. 04118_ Mic. Nuclear Core destroyed. 04118_ Xenon Bombardment Thruster destroyed. 04119_ Slug penetrates Construction Platform. 04119_ Xenon Bombardment Thruster destroyed. 04119_ Slug penetrates Construction Platform. 04119_ Hcp. Battery destroyed. 04122_ Slug penetrates Wall. 04122_ Slug penetrates Construction Platform. 04124_ Drone sends a signal. 04125_ System corrupted: Matter fused (-8). 04125_ Penetrated by Slug. Map ----- +----------------------------------------------------+ | #??????????????#/###?????????????????? | | #???????######! #?????????????????? | | ???????? ###???????????????? | | ????????# ????????????? | | ????????# #???????????? ????? | | ????????# #### #???????????? ????? | | #########+##???????????????????? ????? | | #????????? #???????? ????? | | #????????? ????????? ????? | | """ """ #???????? ?????????? ????? | | """ """ #?####### #?????????# ????? | | """ """ #? #????????? #???? | | #? ?????????? #???? | | """ """ #? ??????????? #???? | | """ """ #?# ???????????? #???? | | """ """ #?# #????????????# #???? | | ? #?# #????????????# #???? | | ? #?# ###########??# #???? | | #?# # #??# #???? | | ############## #![! #### #???? | | # # #[[! # #???? | | # # #[[! # l s#???? | | # # #####+##### #???? | | # + #???# #???? | | # """ # ####???# #???? | | # """ # ######## @ #???? | | # """ # # # #???? | | # # # # #???? | | # """# # # #???? | | ######## Y"# # # """" #???? | | ?# #???# """# # # """" #???? | | ?# #???# ? # # # """"p #???? | | ?# #????#??### # # """" g #???? | | ##+########### # ! #h """" #???? | | # # # # """ #???? | | # """"""""" # + # "" " #???? | | +% # # #% h #???? | | # """"""""" # ######## #???? | | # # #???? | | # """"""""" # ######## ##########???? | | # # #??????# #????????????? | | # """"""""" # #??????# #????????????? | | # # #??????# #????????????? | | # """"""""" # #?????##+###########??? | | # # #?????# #??? | | # # #?????# """"" #??? | | #######+###### ####### """"" #??? | | # """ #??? | | ^ # #??? | | # """"" #??? | +----------------------------------------------------+ Best States ------------- Heat Dissipation 37 Energy Generation 17 Energy Capacity 450 Matter Stores 300 Matter Capacity 400 Sight Range 16 Robot Scan Range 15 Terrain Scan Density 10 ECM Strength 2 Armor Coverage 150 Resistance: TH 10 Evasion (%) 64 Melee Accuracy 6 Recoil Reduction 2 Energy Filtering 30 Offensive Hacking 10 Item Schematics ----------------- None Robot Schematics ------------------ None Fabricated ------------ Nothing Repaired ---------- Nothing Studied --------- None Alien Tech Used ----------------- None Achievements -------------- I Have A Map? Morally Flexible Party Time Challenges ------------ None Game ------ Seed JunkQuantumFemtoactuators Manual? 0 Play Time 01:15:14 Cumulative 30.6 hours Start 2026.04.10 @ 02:12:32 End 2026.04.10 @ 03:29:30 Sessions 1 Manual Loads 0 Difficulty Rogue Special Mode None Game No. 84 Rogue 84 Adventurer 0 Explorer 0 Win Type - Total 0 Types 0/0/0/0/0/0/0/0/0/0 Lore% 14 Gallery% 23 Achievement% 14 Wizard Run 0 Options --------- Layout 2 ASCII 0 Keyboard 1 Movement Vi Keybinds 0 Fullscreen 2 Font 20/Terminus Map View 64x51 Zoom Use 0% Tactical HUD 1 Map Filters NONE Filters NONE Steam 1 RUN: 810372eb-e58c-4d11-935f-3ba599e322df